fUSD/lending_fUSD_20250216
["ID","MTS","AMOUNT","RATE_DAILY","PERIOD"]
[353298664,1739742676271,-565.07,0.00011534,2]
[353298665,1739742676281,-500.0,0.00011534,2]
[353298666,1739742676290,-1208.65,0.00011534,2]
[353298667,1739742676300,-500.0,0.00011534,2]
[353298668,1739742676310,-855.1,0.00011534,2]
[353298669,1739742676320,-597.45,0.00011534,2]
[353298670,1739742676329,-1108.48,0.00011534,2]
[353298671,1739742676339,-570.47,0.00011534,2]
[353298672,1739742676349,-500.0,0.00011534,2]
[353298673,1739742676359,-500.0,0.00011534,2]
[353298674,1739742676369,-1106.27,0.00011534,2]
[353298675,1739742676378,-500.0,0.00011534,2]
[353298676,1739742676388,-500.0,0.00011534,2]
[353298677,1739742676397,-500.0,0.00011534,2]
[353298678,1739742676407,-877.71,0.00011534,2]
[353298679,1739742676417,-500.0,0.00011534,2]
[353298680,1739742676428,-726.09,0.00011534,2]
[353298681,1739742676438,-500.0,0.00011534,2]
[353298682,1739742676448,-541.85,0.00011534,2]
[353298683,1739742676457,-500.0,0.00011534,2]
[353298684,1739742676467,-1071.49,0.00011534,2]
[353298685,1739742676476,-500.0,0.00011534,2]
[353298686,1739742676486,-749.73,0.00011534,2]
[353298687,1739742676495,-767.54,0.00011534,2]
[353298688,1739742676505,-726.53,0.00011534,2]
[353298689,1739742676514,-500.0,0.00011534,2]
[353298690,1739742676524,-500.0,0.00011534,2]
[353298691,1739742676534,-684.820222,0.00011534,2]
[353298692,1739742676544,-580.47,0.00011534,2]
[353298693,1739742676553,-587.22,0.00011534,2]
[353298694,1739742676563,-500.0,0.00011534,2]
[353298695,1739742676573,-500.0,0.00011534,2]
[353298696,1739742676582,-500.0,0.00011534,2]
[353298697,1739742676591,-543.75,0.00011534,2]
[353298698,1739742676601,-987.579306,0.00011534,2]
[353298699,1739742676611,-500.0,0.00011534,2]
[353298700,1739742676620,-500.0,0.00011534,2]
[353298701,1739742676630,-221.73361827,0.00011534,2]
[353298702,1739742676640,-552.35706731,0.00011534,2]
[353298703,1739742676649,-500.0,0.00011534,2]
[353298704,1739742676659,-500.0,0.00011534,2]
[353298705,1739742676668,-532.63,0.00011534,2]
[353298706,1739742676679,-518.7,0.00011534,2]
[353298707,1739742676688,-500.0,0.00011534,2]
[353298708,1739742676698,-218.16,0.00011534,2]
[353298709,1739742676707,-508.32,0.00011534,2]
[353298710,1739742676717,-500.0,0.00011534,2]
[353298711,1739742676726,-500.0,0.00011534,2]
[353298712,1739742676746,-1320.12,0.00011534,2]
[353298713,1739742676756,-500.0,0.00011534,2]
[353298714,1739742676766,-500.0,0.00011534,2]
[353298715,1739742676776,-610.47,0.00011534,2]
[353298716,1739742676786,-500.0,0.00011534,2]
[353298717,1739742676796,-500.0,0.00011534,2]
[353298718,1739742676806,-500.0,0.00011534,2]
[353298719,1739742676815,-603.88,0.00011534,2]
[353298720,1739742676826,-500.0,0.00011534,2]
[353298721,1739742676835,-930.63,0.00011534,2]
[353298722,1739742676846,-836.2,0.00011534,2]
[353298723,1739742676856,-500.0,0.00011534,2]
[353298724,1739742676865,-500.0,0.00011534,2]
[353298725,1739742676875,-712.78,0.00011534,2]
[353298726,1739742676885,-500.0,0.00011534,2]
[353298727,1739742676895,-500.0,0.00011534,2]
[353298728,1739742676905,-500.0,0.00011534,2]
[353298729,1739742676915,-500.0,0.00011534,2]
[353298730,1739742676925,-500.0,0.00011534,2]
[353298731,1739742676935,-999.98,0.00011534,2]
[353298732,1739742676945,-843.76,0.00011534,2]
[353298733,1739742676955,-500.0,0.00011534,2]
[353298734,1739742676965,-863.25,0.00011534,2]
[353298735,1739742676974,-1040.19,0.00011534,2]
[353298736,1739742676984,-500.0,0.00011534,2]
[353298737,1739742676993,-841.54,0.00011534,2]
[353298738,1739742677003,-500.0,0.00011534,2]
[353298739,1739742677012,-500.0,0.00011534,2]
[353298740,1739742677022,-565.47,0.00011534,2]
[353298741,1739742677031,-854.5,0.00011534,2]
[353298742,1739742677041,-500.0,0.00011534,2]
[353298743,1739742677051,-500.0,0.00011534,2]
[353298744,1739742677060,-500.0,0.00011534,2]
[353298745,1739742677070,-839.28,0.00011534,2]
[353298746,1739742677079,-500.0,0.00011534,2]
[353298747,1739742677090,-500.0,0.00011534,2]
[353298748,1739742677103,-500.0,0.00011534,2]
[353298749,1739742677112,-1102.11,0.00011534,2]
[353298750,1739742677122,-500.0,0.00011534,2]
[353298751,1739742677132,-500.0,0.00011534,2]
[353298752,1739742677142,-1120.48,0.00011534,2]
[353298753,1739742677152,-666.2,0.00011534,2]
[353298754,1739742677162,-500.0,0.00011534,2]
[353298755,1739742677171,-500.0,0.00011534,2]
[353298756,1739742677182,-500.0,0.00011534,2]
[353298757,1739742677192,-701.22,0.00011534,2]
[353298758,1739742677202,-500.0,0.00011534,2]
[353298759,1739742677211,-553.25453821,0.00011534,2]
[353298760,1739742677221,-500.0,0.00011534,2]
[353298761,1739742677231,-500.0,0.00011534,2]
[353298762,1739742677240,-500.0,0.00011534,2]
[353298763,1739742677250,-500.0,0.00011534,2]
[353298764,1739742677260,-500.0,0.00011534,2]
[353298765,1739742677270,-500.0,0.00011534,2]
[353298766,1739742677280,-500.0,0.00011534,2]
[353298767,1739742677290,-730.12,0.00011534,2]
[353298768,1739742677300,-500.0,0.00011534,2]
[353298769,1739742677309,-500.0,0.00011534,2]
[353298770,1739742677319,-500.0,0.00011534,2]
[353298771,1739742677330,-691.18,0.00011534,2]
[353298772,1739742677339,-959.53,0.00011534,2]
[353298773,1739742677349,-500.0,0.00011534,2]
[353298774,1739742677358,-500.0,0.00011534,2]
[353298775,1739742677368,-1279.74,0.00011534,2]
[353298776,1739742677379,-500.0,0.00011534,2]
[353298777,1739742677388,-500.0,0.00011534,2]
[353298778,1739742677398,-1064.34,0.00011534,2]
[353298779,1739742677408,-684.81,0.00011534,2]
[353298780,1739742677417,-500.0,0.00011534,2]
[353298781,1739742677428,-500.0,0.00011534,2]
[353298782,1739742677439,-500.0,0.00011534,2]
[353298783,1739742677449,-948.86,0.00011534,2]
[353298784,1739742677459,-500.0,0.00011534,2]
[353298785,1739742677469,-500.0,0.00011534,2]
[353298786,1739742677478,-1205.36,0.00011534,2]
[353298787,1739742677488,-500.0,0.00011534,2]
[353298788,1739742677498,-2644.03,0.00011534,2]
[353298789,1739742677508,-845.2,0.00011534,2]
[353298790,1739742677518,-500.0,0.00011534,2]
[353298791,1739742677528,-1299.48,0.00011534,2]
[353298792,1739742677538,-500.0,0.00011534,2]
[353298793,1739742677548,-2569.33,0.00011534,2]
[353298794,1739742677557,-500.0,0.00011534,2]
[353298795,1739742677568,-500.0,0.00011534,2]
[353298796,1739742677578,-1215.7,0.00011534,2]
[353298797,1739742677588,-500.0,0.00011534,2]
[353298798,1739742677598,-500.0,0.00011534,2]
[353298799,1739742677608,-597.66,0.00011534,2]
[353298800,1739742677617,-500.0,0.00011534,2]
[353298801,1739742677627,-500.0,0.00011534,2]
[353298802,1739742677637,-500.0,0.00011534,2]
[353298803,1739742677647,-500.0,0.00011534,2]
[353298804,1739742677656,-2101.67,0.00011534,2]
[353298805,1739742677666,-664.4,0.00011534,2]
[353298806,1739742677676,-1077.31,0.00011534,2]
[353298807,1739742677685,-500.0,0.00011534,2]
[353298808,1739742677695,-500.0,0.00011534,2]
[353298809,1739742677704,-935.69,0.00011534,2]
[353298810,1739742677713,-661.83,0.00011534,2]
[353298811,1739742677723,-1106.58,0.00011534,2]
[353298812,1739742677735,-500.0,0.00011534,2]
[353298813,1739742677745,-1835.67,0.00011534,2]
[353298814,1739742677755,-2255.62,0.00011534,2]
[353298815,1739742677766,-730.5,0.00011534,2]
[353298816,1739742677777,-500.0,0.00011534,2]
[353298817,1739742677787,-770.15,0.00011534,2]
[353298818,1739742677798,-1638.39,0.00011534,2]
[353298819,1739742677808,-500.0,0.00011534,2]
[353298820,1739742677818,-578.74,0.00011534,2]
[353298821,1739742677829,-1003.64,0.00011534,2]
[353298822,1739742677839,-500.0,0.00011534,2]
[353298823,1739742677848,-500.0,0.00011534,2]
[353298824,1739742677858,-1650.35,0.00011534,2]
[353298825,1739742677869,-791.01,0.00011534,2]
[353298826,1739742677880,-1438.47,0.00011534,2]
[353298827,1739742677890,-500.0,0.00011534,2]
[353298828,1739742677900,-500.0,0.00011534,2]
[353298829,1739742677910,-500.0,0.00011534,2]
[353298830,1739742677920,-500.0,0.00011534,2]
[353298831,1739742677929,-500.0,0.00011534,2]
[353298832,1739742677939,-1575.58,0.00011534,2]
[353298833,1739742677949,-1536.64,0.00011534,2]
[353298834,1739742677959,-687.89,0.00011534,2]
[353298835,1739742677968,-500.0,0.00011534,2]
[353298836,1739742677977,-1036.62,0.00011534,2]
[353298837,1739742677987,-810.05,0.00011534,2]
[353298838,1739742677998,-500.0,0.00011534,2]
[353298839,1739742678008,-1605.64,0.00011534,2]
[353298840,1739742678017,-500.0,0.00011534,2]
[353298841,1739742678027,-500.0,0.00011534,2]
[353298842,1739742678036,-1465.61,0.00011534,2]
[353298843,1739742678046,-500.0,0.00011534,2]
[353298844,1739742678055,-500.0,0.00011534,2]
[353298845,1739742678065,-1869.66,0.00011534,2]
[353298846,1739742678074,-500.0,0.00011534,2]
[353298847,1739742678084,-2363.97,0.00011534,2]
[353298848,1739742678094,-946.33,0.00011534,2]
[353298849,1739742678106,-898.03,0.00011534,2]
[353298850,1739742678115,-500.0,0.00011534,2]
[353298851,1739742678125,-500.0,0.00011534,2]
[353298852,1739742678135,-790.18,0.00011534,2]
[353298853,1739742678144,-5281.57,0.00011534,2]
[353298854,1739742678154,-500.0,0.00011534,2]
[353298855,1739742678164,-1497.17,0.00011534,2]
[353298856,1739742678173,-500.0,0.00011534,2]
[353298857,1739742678183,-955.64,0.00011534,2]
[353298858,1739742678193,-1351.49,0.00011534,2]
[353298859,1739742678203,-1462.67,0.00011534,2]
[353298860,1739742678212,-522.19,0.00011534,2]
[353298861,1739742678222,-500.0,0.00011534,2]
[353298862,1739742678231,-1393.39,0.00011534,2]
[353298863,1739742678240,-918.71,0.00011534,2]
[353298864,1739742678250,-1445.68,0.00011534,2]
[353298865,1739742678259,-500.0,0.00011534,2]
[353298866,1739742678268,-500.0,0.00011534,2]
[353298867,1739742678278,-1262.94,0.00011534,2]
[353298868,1739742678287,-1096.78,0.00011534,2]
[353298869,1739742678297,-866.87,0.00011534,2]
[353298870,1739742678306,-500.0,0.00011534,2]
[353298871,1739742678316,-921.5,0.00011534,2]
[353298872,1739742678326,-500.0,0.00011534,2]
[353298873,1739742678335,-1703.44,0.00011534,2]
[353298874,1739742678345,-817.33,0.00011534,2]
[353298875,1739742678355,-1765.29,0.00011534,2]
[353298876,1739742678364,-563.98,0.00011534,2]
[353298877,1739742678374,-191.25841974,0.00011534,2]
[353298878,1739742678384,-500.0,0.00011534,2]
[353298879,1739742678394,-1077.46,0.00011534,2]
[353298880,1739742678403,-500.0,0.00011534,2]
[353298881,1739742678413,-797.83,0.00011534,2]
[353298882,1739742678424,-2045.9,0.00011534,2]
[353298883,1739742678433,-500.0,0.00011534,2]
[353298884,1739742678443,-1027.79,0.00011534,2]
[353298885,1739742678452,-562.48,0.00011534,2]
[353298886,1739742678462,-919.02,0.00011534,2]
[353298887,1739742678472,-2070.46,0.00011534,2]
[353298888,1739742678482,-500.0,0.00011534,2]
[353298889,1739742678491,-500.0,0.00011534,2]
[353298890,1739742678501,-1269.5,0.00011534,2]
[353298891,1739742678510,-1764.9,0.00011534,2]
[353298892,1739742678520,-1920.38,0.00011534,2]
[353298893,1739742678530,-594.15,0.00011534,2]
[353298894,1739742678539,-1514.45,0.00011534,2]
[353298895,1739742678549,-3942.71,0.00011534,2]
[353298896,1739742678559,-500.0,0.00011534,2]
[353298897,1739742678569,-500.0,0.00011534,2]
[353298898,1739742678580,-500.0,0.00011534,2]
[353298899,1739742678590,-500.0,0.00011534,2]
[353298900,1739742678600,-518.38,0.00011534,2]
[353298901,1739742678610,-2006.59,0.00011534,2]
[353298902,1739742678620,-500.0,0.00011534,2]
[353298903,1739742678630,-739.81,0.00011534,2]
[353298904,1739742678640,-500.0,0.00011534,2]
[353298905,1739742678650,-1277.56,0.00011534,2]
[353298906,1739742678660,-659.07,0.00011534,2]
[353298907,1739742678670,-676.16,0.00011534,2]
[353298908,1739742678680,-500.0,0.00011534,2]
[353298909,1739742678690,-616.55,0.00011534,2]
[353298910,1739742678700,-500.0,0.00011534,2]
[353298911,1739742678709,-500.0,0.00011534,2]
[353298912,1739742678719,-662.98,0.00011534,2]
[353298913,1739742678728,-681.63,0.00011534,2]
[353298914,1739742678738,-500.0,0.00011534,2]
[353298915,1739742678748,-1928.42,0.00011534,2]
[353298916,1739742678759,-768.53,0.00011534,2]
[353298917,1739742678769,-1472.35,0.00011534,2]
[353298918,1739742678778,-500.0,0.00011534,2]
[353298919,1739742678788,-500.0,0.00011534,2]
[353298920,1739742678798,-1085.08,0.00011534,2]
[353298921,1739742678807,-1097.37,0.00011534,2]
[353298922,1739742678819,-1532.75,0.00011534,2]
[353298923,1739742678828,-1575.69,0.00011534,2]
[353298924,1739742678838,-800.35,0.00011534,2]
[353298925,1739742678848,-2696.32,0.00011534,2]
[353298926,1739742678857,-1998.61,0.00011534,2]
[353298927,1739742678867,-601.4,0.00011534,2]
[353298928,1739742678877,-846.39,0.00011534,2]
[353298929,1739742678887,-500.0,0.00011534,2]
[353298930,1739742678897,-1249.29,0.00011534,2]
[353298931,1739742678906,-500.0,0.00011534,2]
[353298932,1739742678915,-1062.89,0.00011534,2]
[353298933,1739742678925,-500.0,0.00011534,2]
[353298934,1739742678935,-500.0,0.00011534,2]
[353298935,1739742678945,-2010.66,0.00011534,2]
[353298936,1739742678954,-1292.55,0.00011534,2]
[353298937,1739742678964,-500.0,0.00011534,2]
[353298938,1739742678974,-1786.66,0.00011534,2]
[353298939,1739742678984,-339.37054394,0.00011534,2]
[353298940,1739742678995,-718.28,0.00011534,2]
[353298941,1739742679005,-500.0,0.00011534,2]
[353298942,1739742679015,-500.0,0.00011534,2]
[353298943,1739742679025,-505.9,0.00011534,2]
[353298944,1739742679034,-500.0,0.00011534,2]
[353298945,1739742679043,-2309.43,0.00011534,2]
[353298946,1739742679053,-841.82,0.00011534,2]
[353298947,1739742679062,-208.97217445,0.00011534,2]
[353298948,1739742679072,-1004.9,0.00011534,2]
[353298949,1739742679082,-500.0,0.00011534,2]
[353298950,1739742679093,-1051.25,0.00011534,2]
[353298951,1739742679106,-500.0,0.00011534,2]
[353298952,1739742679116,-1465.9,0.00011534,2]
[353298953,1739742679127,-1681.66,0.00011534,2]
[353298954,1739742679138,-500.0,0.00011534,2]
[353298955,1739742679148,-918.07,0.00011534,2]
[353298956,1739742679157,-500.0,0.00011534,2]
[353298957,1739742679167,-1609.77,0.00011534,2]
[353298958,1739742679177,-500.0,0.00011534,2]
[353298959,1739742679187,-1735.61,0.00011534,2]
[353298960,1739742679199,-500.0,0.00011534,2]
[353298961,1739742679208,-500.0,0.00011534,2]
[353298962,1739742679218,-2197.25,0.00011534,2]
[353298963,1739742679228,-500.0,0.00011534,2]
[353298964,1739742679238,-500.0,0.00011534,2]
[353298965,1739742679248,-415.38,0.00011534,2]
[353298966,1739742679257,-795.13,0.00011534,2]
[353298967,1739742679267,-513.81,0.00011534,2]
[353298968,1739742679277,-685.8,0.00011534,2]
[353298969,1739742679286,-1539.81,0.00011534,2]
[353298970,1739742679295,-4849.07,0.00011534,2]
[353298971,1739742679305,-500.0,0.00011534,2]
[353298972,1739742679315,-500.0,0.00011534,2]
[353298973,1739742679324,-1000.0,0.00011554,2]
[353298974,1739742679334,-1017.77578108,0.00011589,2]
[353298975,1739742679343,-300.0,0.00011589,2]
[353298976,1739742679353,-3270.5640662,0.00011607,2]
[353298977,1739742679363,-7258.4751806,0.00011607,2]
[353298978,1739742679372,-1726.08,0.00011615,2]
[353298979,1739742679382,-1471.49,0.00011615,2]
[353298980,1739742679391,-922.85,0.00011615,2]
[353298981,1739742679400,-1666.95,0.00011615,2]
[353298982,1739742679410,-500.0,0.00011615,2]
[353298983,1739742679420,-1208.65,0.00011615,2]
[353298984,1739742679430,-1605.62,0.00011615,2]
[353298985,1739742679439,-2077.86,0.00011615,2]
[353298986,1739742679449,-1142.3,0.00011615,2]
[353298987,1739742679459,-1876.41,0.00011615,2]
[353298988,1739742679468,-553.47,0.00011615,2]
[353298989,1739742679478,-1626.88,0.00011615,2]
[353298990,1739742679488,-1146.64,0.00011615,2]
[353298991,1739742679499,-151.0,0.00011616,2]
[353298992,1739742679508,-185.244464,0.00011616,2]
[353298993,1739742679518,-151.0,0.00011616,2]
[353298994,1739742679689,-500.0,0.00011616,2]
[353298995,1739742679718,-500.0,0.00011616,2]
[353298996,1739742679729,-500.0,0.00011616,2]
[353298997,1739742679739,-500.0,0.00011616,2]
[353298998,1739742679750,-500.0,0.00011616,2]
[353298999,1739742679759,-500.0,0.00011616,2]
[353299000,1739742679768,-500.0,0.00011616,2]
[353299001,1739742679778,-500.0,0.00011616,2]
[353299002,1739742679790,-500.0,0.00011616,2]
[353299003,1739742679799,-500.0,0.00011616,2]
[353299004,1739742679809,-500.0,0.00011616,2]
[353299005,1739742679820,-500.0,0.00011616,2]
[353299006,1739742679829,-562.68,0.00011616,2]
[353299007,1739742679838,-500.0,0.00011616,2]
[353299008,1739742679850,-500.0,0.00011616,2]
[353299009,1739742679860,-500.0,0.00011616,2]
[353299010,1739742679870,-500.0,0.00011616,2]
[353299011,1739742679881,-500.0,0.00011616,2]
[353299012,1739742679890,-500.0,0.00011616,2]
[353299013,1739742679899,-500.0,0.00011616,2]
[353299014,1739742679909,-500.0,0.00011616,2]
[353299015,1739742679918,-500.0,0.00011616,2]
[353299016,1739742679928,-540.36,0.00011616,2]
[353299017,1739742679937,-500.0,0.00011616,2]
[353299018,1739742679947,-500.0,0.00011616,2]
[353299019,1739742679956,-500.0,0.00011616,2]
[353299020,1739742679965,-500.0,0.00011616,2]
[353299021,1739742679974,-500.0,0.00011616,2]
[353299022,1739742679983,-500.0,0.00011616,2]
[353299023,1739742679993,-588.54,0.00011616,2]
[353299024,1739742680003,-527.23,0.00011616,2]
[353299025,1739742680012,-549.62,0.00011616,2]
[353299026,1739742680022,-500.0,0.00011616,2]
[353299027,1739742680031,-561.88,0.00011616,2]
[353299028,1739742680040,-600.0,0.00011616,2]
[353299029,1739742680050,-500.0,0.00011616,2]
[353299030,1739742680061,-500.0,0.00011616,2]
[353299031,1739742680071,-773.53,0.00011616,2]
[353299032,1739742680081,-500.0,0.00011616,2]
[353299033,1739742680090,-629.01,0.00011616,2]
[353299034,1739742680103,-500.0,0.00011616,2]
[353299035,1739742680112,-500.0,0.00011616,2]
[353299036,1739742680121,-545.39,0.00011616,2]
[353299037,1739742680130,-581.66,0.00011616,2]
[353299038,1739742680141,-500.0,0.00011616,2]
[353299039,1739742680152,-525.55,0.00011616,2]
[353299040,1739742680161,-500.0,0.00011616,2]
[353299041,1739742680170,-500.0,0.00011616,2]
[353299042,1739742680181,-500.0,0.00011616,2]
[353299043,1739742680191,-804.84,0.00011616,2]
[353299044,1739742680201,-458.31,0.00011616,2]
[353299045,1739742680211,-211.48,0.00011616,2]
[353299046,1739742680220,-982.12,0.00011616,2]
[353299047,1739742680230,-500.0,0.00011616,2]
[353299048,1739742680239,-500.0,0.00011616,2]
[353299049,1739742680249,-500.0,0.00011616,2]
[353299050,1739742680261,-500.0,0.00011616,2]
[353299051,1739742680272,-500.0,0.00011616,2]
[353299052,1739742680283,-500.0,0.00011616,2]
[353299053,1739742680293,-500.0,0.00011616,2]
[353299054,1739742680302,-565.07,0.00011616,2]
[353299055,1739742680312,-500.0,0.00011616,2]
[353299056,1739742680321,-1208.65,0.00011616,2]
[353299057,1739742680331,-500.0,0.00011616,2]
[353299058,1739742680340,-855.1,0.00011616,2]
[353299059,1739742680350,-597.45,0.00011616,2]
[353299060,1739742680359,-1108.48,0.00011616,2]
[353299061,1739742680370,-570.47,0.00011616,2]
[353299062,1739742680380,-500.0,0.00011616,2]
[353299063,1739742680390,-500.0,0.00011616,2]
[353299064,1739742680399,-1106.27,0.00011616,2]
[353299065,1739742680408,-465.59,0.00011616,2]
[353299066,1739742680418,-500.0,0.00011616,2]
[353299067,1739742680428,-500.0,0.00011616,2]
[353299068,1739742680438,-877.71,0.00011616,2]
[353299069,1739742680447,-500.0,0.00011616,2]
[353299070,1739742680457,-726.09,0.00011616,2]
[353299071,1739742680466,-500.0,0.00011616,2]
[353299072,1739742680476,-541.85,0.00011616,2]
[353299073,1739742680485,-500.0,0.00011616,2]
[353299074,1739742680495,-1071.49,0.00011616,2]
[353299075,1739742680504,-500.0,0.00011616,2]
[353299076,1739742680514,-749.73,0.00011616,2]
[353299077,1739742680523,-726.53,0.00011616,2]
[353299078,1739742680532,-500.0,0.00011616,2]
[353299079,1739742680541,-767.54,0.00011616,2]
[353299080,1739742680551,-500.0,0.00011616,2]
[353299081,1739742680561,-684.820222,0.00011616,2]
[353299082,1739742680570,-580.47,0.00011616,2]
[353299083,1739742680580,-587.22,0.00011616,2]
[353299084,1739742680589,-500.0,0.00011616,2]
[353299085,1739742680599,-500.0,0.00011616,2]
[353299086,1739742680608,-500.0,0.00011616,2]
[353299087,1739742680617,-987.579306,0.00011616,2]
[353299088,1739742680626,-500.0,0.00011616,2]
[353299089,1739742680636,-500.0,0.00011616,2]
[353299090,1739742680646,-500.0,0.00011616,2]
[353299091,1739742680656,-500.0,0.00011616,2]
[353299092,1739742680665,-532.63,0.00011616,2]
[353299093,1739742680675,-518.7,0.00011616,2]
[353299094,1739742680686,-500.0,0.00011616,2]
[353299095,1739742680695,-508.32,0.00011616,2]
[353299096,1739742680704,-500.0,0.00011616,2]
[353299097,1739742680713,-500.0,0.00011616,2]
[353299098,1739742680723,-1320.12,0.00011616,2]
[353299099,1739742680732,-500.0,0.00011616,2]
[353299100,1739742680743,-500.0,0.00011616,2]
[353299101,1739742680754,-610.47,0.00011616,2]
[353299102,1739742680764,-511.22,0.00011616,2]
[353299103,1739742680774,-500.0,0.00011616,2]
[353299104,1739742680783,-500.0,0.00011616,2]
[353299105,1739742680792,-603.88,0.00011616,2]
[353299106,1739742680802,-266.77695235,0.00011616,2]
[353299107,1739742680811,-930.63,0.00011616,2]
[353299108,1739742680821,-836.2,0.00011616,2]
[353299109,1739742680830,-500.0,0.00011616,2]
[353299110,1739742680841,-500.0,0.00011616,2]
[353299111,1739742680851,-712.78,0.00011616,2]
[353299112,1739742680861,-500.0,0.00011616,2]
[353299113,1739742680871,-500.0,0.00011616,2]
[353299114,1739742680881,-500.0,0.00011616,2]
[353299115,1739742680892,-500.0,0.00011616,2]
[353299116,1739742680902,-500.0,0.00011616,2]
[353299117,1739742680911,-999.98,0.00011616,2]
[353299118,1739742680921,-843.76,0.00011616,2]
[353299119,1739742680932,-500.0,0.00011616,2]
[353299120,1739742680942,-863.25,0.00011616,2]
[353299121,1739742680951,-1040.19,0.00011616,2]
[353299122,1739742680960,-500.0,0.00011616,2]
[353299123,1739742680970,-841.54,0.00011616,2]
[353299124,1739742680980,-500.0,0.00011616,2]
[353299125,1739742680990,-500.0,0.00011616,2]
[353299126,1739742680999,-565.47,0.00011616,2]
[353299127,1739742681009,-854.5,0.00011616,2]
[353299128,1739742681018,-500.0,0.00011616,2]
[353299129,1739742681027,-500.0,0.00011616,2]
[353299130,1739742681038,-500.0,0.00011616,2]
[353299131,1739742681047,-839.28,0.00011616,2]
[353299132,1739742681056,-500.0,0.00011616,2]
[353299133,1739742681066,-500.0,0.00011616,2]
[353299134,1739742681076,-1102.11,0.00011616,2]
[353299135,1739742681086,-500.0,0.00011616,2]
[353299136,1739742681097,-500.0,0.00011616,2]
[353299137,1739742681109,-1120.48,0.00011616,2]
[353299138,1739742681118,-171.750362,0.00011616,2]
[353299139,1739742681128,-666.2,0.00011616,2]
[353299140,1739742681139,-500.0,0.00011616,2]
[353299141,1739742681148,-500.0,0.00011616,2]
[353299142,1739742681158,-500.0,0.00011616,2]
[353299143,1739742681168,-701.22,0.00011616,2]
[353299144,1739742681179,-500.0,0.00011616,2]
[353299145,1739742681189,-500.0,0.00011616,2]
[353299146,1739742681199,-500.0,0.00011616,2]
[353299147,1739742681209,-500.0,0.00011616,2]
[353299148,1739742681219,-500.0,0.00011616,2]
[353299149,1739742681229,-500.0,0.00011616,2]
[353299150,1739742681240,-500.0,0.00011616,2]
[353299151,1739742681250,-500.0,0.00011616,2]
[353299152,1739742681259,-730.12,0.00011616,2]
[353299153,1739742681268,-500.0,0.00011616,2]
[353299154,1739742681280,-500.0,0.00011616,2]
[353299155,1739742681290,-500.0,0.00011616,2]
[353299156,1739742681300,-691.18,0.00011616,2]
[353299157,1739742681309,-959.53,0.00011616,2]
[353299158,1739742681319,-578.31393359,0.00011616,2]
[353299159,1739742681328,-500.0,0.00011616,2]
[353299160,1739742681338,-1279.74,0.00011616,2]
[353299161,1739742681348,-500.0,0.00011616,2]
[353299162,1739742681358,-500.0,0.00011616,2]
[353299163,1739742681368,-1064.34,0.00011616,2]